Cogmind - Beta 11.1 @@@ ROGUE MODE // 2022.09.30 @ 23:20:04 Player: DuckBoy Result: Destroyed by Y-64 Sentinel with Wave Gun Performance ------------- Evolutions (6) 3000 Regions Visited (8) 1600 Robots Destroyed (156) 780 Value Destroyed (5423) 5423 Prototype IDs (13) 260 Alien Tech Used (0) 0 Bonus (2518) 2518 TOTAL SCORE: 13581 Bonus ------- High Alert Combat Kills 1793 Follower Combat Kills 823 Friendly Fire -98 Cogmind --------- Core Integrity 0/1150 Matter 275/300 Energy 10/100 System Corruption 2% Temperature Cool (9) Movement Core (100) Ox1 Location -4/Factory Parts ------- > --- POWER (3) -------- (None) > --- PROPULSION (6) --- Field Propulsion Drive Cooled Field Propulsion Drive Field Propulsion Array Field Propulsion Array > --- UTILITY (4) ------ Drone Bay (0/2) > --- WEAPON (6) ------- (None) > --- INVENTORY (5) ---- Kinecellerator Drone Bay (2/2) Long-range Proton Cannon Peak State ------------ > --- POWER ------------ Heavy Deuterium Engine Light Fission Core Neutrino Core > --- PROPULSION ------- Armored Wheel Armored Wheel Armored Wheel Armored Wheel Armored Huge Wheel > --- UTILITY ---------- Improved Cooling System High-capacity Storage Unit Hardened Medium Armor Plating Drone Bay > --- WEAPON ----------- Heavy Particle Gun Precision Beam Rifle Advanced Beam Rifle Cooled Pulse Rifle Advanced Plasma Rifle Rocket Array > --- INVENTORY -------- Improved Treads Improved Treads Armored Wheel Advanced Heat Sink Advanced Signal Interpreter Improved Medium Armor Plating Drone Bay Drone Bay Drone Bay Drone Bay High-powered Shock Rifle Pulse Rifle Wave Gun Improved EM Pulse Cannon Long-range Proton Cannon Cooled Particle Cannon Matter Neutralizer Railgun Hardcell Cannon [Rating: 84] Favorites ----------- Power Improved Deuterium Engine Engine Improved Deuterium Engine Power Core Neutrino Core Propulsion Compact Wheel Treads Light Treads Wheel Compact Wheel Flight Unit Field Propulsion Array Utility High-capacity Storage Unit Device Improved Heat Sink Storage High-capacity Storage Unit Protection Improved Medium Armor Plating Weapon Pulse Rifle Energy Gun Pulse Rifle Energy Cannon Cooled Particle Cannon Ballistic Gun Light Assault Rifle Ballistic Cannon Hardcell Cannon Launcher Rocket Array Build | -11 -10 -9 -8 -7 -7 -7 -5 -4 ------- Run | Scr Mat Mat Mat Fac Sto Rec Fac Fac Slots Evolved 12 | . . 2 2 2 . . 4 2 Power 2 | . . . . 1 . . 1 . Propulsion 4 | . . 1 1 . . . 1 1 Utility 2 | . . . 1 . . . 1 . Weapon 4 | . . 1 . 1 . . 1 1 Parts Attached 137 | 6 10 15 12 34 18 . 10 32 Power 14 | 1 1 3 1 3 1 . 1 3 Engine 10 | 1 1 3 1 2 1 . . 1 Core 4 | . . . . 1 . . 1 2 Reactor . | . . . . . . . . . Propulsion 44 | 2 4 3 5 11 4 . 6 9 Treads 22 | 2 2 3 5 6 3 . . 1 Leg . | . . . . . . . . . Wheel 18 | . 2 . . 5 1 . 6 4 Hover . | . . . . . . . . . Flight 4 | . . . . . . . . 4 Utility 26 | 1 2 2 2 5 3 . 2 9 Device 13 | . . 1 1 2 3 . 1 5 Storage 3 | 1 1 . . 1 . . . . Processor . | . . . . . . . . . Hackware . | . . . . . . . . . Protection 10 | . 1 1 1 2 . . 1 4 Artifact . | . . . . . . . . . Weapon 53 | 2 3 7 4 15 10 . 1 11 Energy Gun 27 | 1 1 5 2 4 7 . . 7 Energy Cannon 14 | . . 1 . 8 3 . . 2 Ballistic Gun 3 | 1 1 . . . . . . 1 Ballistic Cannon 1 | . . . . . . . . 1 Launcher 8 | . 1 1 2 3 . . 1 . Special Weapon . | . . . . . . . . . Impact Weapon . | . . . . . . . . . Slashing Weapon . | . . . . . . . . . Piercing Weapon . | . . . . . . . . . Special Melee Weapon . | . . . . . . . . . Unidentified Prototypes 13 | . . 2 . 2 6 . 1 2 Parts Lost 51 | . . . 2 16 4 . . 29 Power 8 | . . . 1 2 . . . 5 Propulsion 19 | . . . 1 6 4 . . 8 Utility 9 | . . . . 2 . . . 7 Weapon 15 | . . . . 6 . . . 9 Highest Loss Streak 23 | . . . 2 10 2 . . 23 To Critical Strikes 1 | . . . . . 1 . . . Average Slot Usage (%) 93 | . 86 97 98 94 99 100 96 76 Engine 11 | . 13 11 8 9 13 15 11 7 Core 1 | . . . . 1 1 . 3 4 Treads 13 | . 14 20 34 10 9 15 1 . Wheel 15 | . 13 11 1 19 20 15 27 21 Device 9 | . . 8 9 7 15 15 11 8 Storage 7 | . 14 11 9 7 7 7 5 3 Protection 3 | . 2 2 7 6 . . 5 3 Energy Gun 20 | . 14 25 20 19 18 23 17 16 Energy Cannon 5 | . . 3 2 9 11 7 5 2 Ballistic Gun 1 | . 11 2 . . . . . . Launcher 1 | . 1 . 3 . . . 2 3 Naked Turns 13 | . . . . . . . . 13 Heaviest Build 116 | 11 51 61 68 83 85 85 102 116 Greatest Support 83 | 40 40 16 83 83 48 32 60 76 Greatest Overweight (x) 3 | . 3 3 1 2 2 2 2 2 Average Overweight (x) 1 | . . 3 . 1 1 2 1 . Largest Inventory Capacity 20 | 8 20 20 20 20 20 20 20 20 Average Capacity 18 | 6 14 20 20 20 20 20 20 16 Most Carried 20 | 3 18 20 20 20 20 20 20 20 Average Carried 17 | 1 9 19 19 17 19 19 19 15 Final Capacity 20 | 8 20 20 20 20 20 20 20 5 Final Carried 20 | 3 16 20 19 12 19 20 16 3 Class Distribution -------------------- 22% | Mutant 21% | Commander-Gunner 16% | Gunner 12% | Tank 7% | Commander-Tank 5% | Scavenger-Mutant Dominant Class ---------------- Mutant | -10/Materials Gunner | -9/Materials Tank | -8/Materials Tank | -7/Factory Commander-Gunner | -7/Storage Commander-Gunner | -7/Recycling Commander-Tank | -5/Factory Mutant | -4/Factory Resources | -11 -10 -9 -8 -7 -7 -7 -5 -4 ----------- Run | Scr Mat Mat Mat Fac Sto Rec Fac Fac Matter Collected 1864 | 260 75 267 195 345 196 32 130 364 Remotely . | . . . . . . . . . Salvage Created 5138 | . 424 746 544 1402 574 5 124 1319 Parts 276 | . 27 55 40 59 28 1 8 58 Haulers Intercepted 12 | . 2 1 2 3 4 . . . Recyclers Shooed 4 | . . . . 1 1 . . 2 Parts Field Recycled . | . . . . . . . . . Retrieved Matter . | . . . . . . . . . Parts Self-Destructed . | . . . . . . . . . Prevented . | . . . . . . . . . Kills | -11 -10 -9 -8 -7 -7 -7 -5 -4 ------- Run | Scr Mat Mat Mat Fac Sto Rec Fac Fac Combat Hostiles Destroyed 111 | . 7 20 19 23 7 1 2 32 Guns 46 | . 4 13 10 4 3 1 1 10 Cannons 17 | . . 2 2 8 4 . 1 . AOE 41 | . 3 4 6 6 . . . 22 Classes Destroyed 18 | . 6 3 . 5 . 1 . 3 Worker 17 | . 2 . 3 3 1 . 2 6 Builder 2 | . . . . . . . . 2 Tunneler 1 | . . . . 1 . . . . Hauler 12 | . 2 1 2 3 4 . . . Recycler 3 | . 1 . . 1 . . . 1 Mechanic 1 | . . . . . . . . 1 Operator 4 | . . 1 1 1 . . . 1 Drone 1 | . . . . . . 1 . . Watcher 5 | . 1 1 1 . 1 . . 1 Swarmer 27 | . 3 4 12 . 2 . . 6 Grunt 52 | . 4 10 5 12 2 . . 19 Brawler 1 | . . 1 . . . . . . Duelist 1 | . . . . . . . . 1 Protector 2 | . . . . 1 . . . 1 Sentry 11 | . . 5 2 2 2 . . . Specialist 5 | . . . . 4 . . . 1 Hunter 2 | . . . . 1 . . 1 . Programmer 9 | . . . . 3 1 . 1 4 Best Kill Streak 15 | . 4 4 13 10 5 1 2 15 Combat Bots Only 12 | . 3 4 7 7 2 1 1 12 Max Kills in Single Turn 5 | . 3 2 2 3 2 1 2 5 Gunslinging 1 | . . 1 . . . . . 1 Exploded 5 | . 3 2 2 2 . . . 5 Melee . | . . . . . . . . . Uniques/NPCs Destroyed . | . . . . . . . . . Combat | -11 -10 -9 -8 -7 -7 -7 -5 -4 -------- Run | Scr Mat Mat Mat Fac Sto Rec Fac Fac Damage Taken 8730 | . 167 601 612 2084 476 . 84 4706 Core 1679 | . 81 66 24 300 49 . . 1159 Absorbed by Shields 208 | . . . . . . . 81 127 Core Remaining (%) 82 | 100 67 83 95 . . 50 100 . Volleys Fired 266 | . 40 38 45 61 24 5 9 44 Largest 6 | . 2 3 3 4 4 4 5 6 Hottest 356 | . 70 194 194 286 265 166 211 356 Shots Fired 734 | . 79 100 105 161 96 20 34 139 Gun 558 | . 78 83 85 96 65 15 24 112 Cannon 149 | . . 14 12 60 31 5 9 18 Launcher 27 | . 1 3 8 5 . . 1 9 Special . | . . . . . . . . . Kinetic 57 | . 39 13 . . . . . 5 Thermal 567 | . 39 84 97 75 96 20 33 123 Explosive 27 | . 1 3 8 5 . . 1 9 Electromagnetic 83 | . . . . 81 . . . 2 Robot Hit Streak 20 | . 9 20 13 12 10 2 4 7 Robot Miss Streak 6 | . 5 2 4 6 2 1 3 5 Penetration Max . | . . . . . . . . . Secondary Targets 4 | . 1 1 1 . . . . 1 Max Gunslinging Chain 1 | . 1 1 1 . . . . 1 Shots Hit Robots 424 | . 45 70 71 94 58 5 14 67 Core Hits 353 | . 23 31 37 61 19 1 11 170 Critical Kills 3 | . . . . 3 . . . . Critical Parts Destroyed . | . . . . . . . . . Critical Strikes 18 | . 2 1 4 4 3 . . 4 Burn 14 | . 2 1 4 . 3 . . 4 Meltdown 3 | . . . . 3 . . . . Corrupt 1 | . . . . 1 . . . . Melee Attacks . | . . . . . . . . . Impact . | . . . . . . . . . Slashing . | . . . . . . . . . Piercing . | . . . . . . . . . Sneak Attacks . | . . . . . . . . . Combat Hostiles . | . . . . . . . . . Follow-up Attacks . | . . . . . . . . . Damage Inflicted 14442 | . 587 1337 1715 3187 1274 122 421 5799 Guns 5984 | . 481 942 1075 1117 797 95 257 1220 Cannons 2037 | . . 123 143 1017 477 27 115 135 Explosions 6421 | . 106 272 497 1053 . . 49 4444 Melee . | . . . . . . . . . Ramming . | . . . . . . . . . Kinetic 313 | . 165 90 . . . . . 58 Thermal 7699 | . 316 975 1218 1247 1274 122 372 2175 Explosive 5411 | . 106 272 497 929 . . 49 3558 Electromagnetic 1019 | . . . . 1011 . . . 8 Impact . | . . . . . . . . . Slashing . | . . . . . . . . . Piercing . | . . . . . . . . . Highest Corruption 5 | . . . . 4 4 5 . 2 Average Corruption 3 | . . . . 2 4 4 . 1 Corruption Purged . | . . . . . . . . . Corruption Blocked . | . . . . . . . . . Effects 45 | . . . . 4 16 22 . 3 Message Errors 14 | . . . . 2 5 7 . . Matter Fused 9 | . . . . . 3 5 . 1 Heat Flow Errors 9 | . . . . . 1 7 . 1 Energy Discharges 5 | . . . . . 3 1 . 1 Parts Rejected 1 | . . . . 1 . . . . Data Loss (minor) 3 | . . . . 1 1 1 . . Misfires 4 | . . . . . 3 1 . . Overload Shots 4 | . . . . 2 . . . 2 Effects 1 | . . . . . . . . 1 Heat Surge 1 | . . . . . . . . 1 Overflow Damage 247 | . . 10 . 70 14 . . 153 Projectiles 52 | . . . . 38 14 . . . Explosions 195 | . . 10 . 32 . . . 153 Melee . | . . . . . . . . . Knockbacks . | . . . . . . . . . Impact . | . . . . . . . . . Kinetic . | . . . . . . . . . Secondary . | . . . . . . . . . Self-Inflicted Damage 344 | . . . . 52 . . . 292 Shots 11 | . . . . 1 . . . 10 Rammed . | . . . . . . . . . Targets Rammed . | . . . . . . . . . Kicked . | . . . . . . . . . Crushed . | . . . . . . . . . Highest Temperature 389 | . 162 378 292 389 312 201 72 194 Average Temperature 103 | . 63 131 111 137 70 55 26 77 Received Heat Transfer 1763 | . 78 273 180 567 84 . 4 577 Effects 3 | . . . 2 1 . . . . Interference 3 | . . . 2 1 . . . . Siege Activations . | . . . . . . . . . Robots Corrupted 2 | . . . . 2 . . . . Combat Hostiles 2 | . . . . 2 . . . . Parts Fried 9 | . . . . 9 . . . . Impact Corruptions . | . . . . . . . . . Robots Melted 6 | . . 1 1 3 1 . . . Combat Hostiles 5 | . . 1 1 3 . . . . Parts Melted 37 | . 3 6 5 4 8 . 7 4 Heat Transferred 14756 | . 1073 2257 2886 1852 2479 222 610 3377 Parts Sabotaged 3 | . . . . . . . . 3 Parts Stolen . | . . . . . . . . . Parts Stripped . | . . . . . . . . . Power Chain Reactions 1 | . . . . 1 . . . . Missiles Intercepted . | . . . . . . . . . Alert | -11 -10 -9 -8 -7 -7 -7 -5 -4 ------- Run | Scr Mat Mat Mat Fac Sto Rec Fac Fac Peak Influence 1848 | . 262 397 564 451 569 502 1247 1848 Initial 1061 | . . 26 96 177 204 217 1061 588 Average 476 | . 93 205 344 271 340 355 1143 1323 Maximum Alert Level 5 | . 1 1 2 2 2 2 4 5 Low Security (%) 26 | 100 94 51 27 33 13 . . . Level 1 38 | . 5 48 25 54 51 77 . . Level 2 17 | . . . 47 12 35 22 . 16 Level 3 4 | . . . . . . . 23 19 Level 4 7 | . . . . . . . 76 20 Level 5 6 | . . . . . . . . 43 High Security . | . . . . . . . . . Max Security . | . . . . . . . . . Squads Dispatched 28 | . 1 3 2 3 5 . 2 12 Investigation 6 | . 1 1 1 . . . . 3 Extermination 4 | . . . . 1 1 . 1 1 Reinforcement 10 | . . 2 1 2 1 . 1 3 Assault 5 | . . . . . . . . 5 Garrison 3 | . . . . . 3 . . . Intercept . | . . . . . . . . . Searches Triggered 1 | . . . . . . . 1 . Construction Impeded 1 | . . . . . . . . 1 Haulers Reinforced 3 | . . . . 1 1 . 1 . Active Scanning Responses . | . . . . . . . . . Cargo Convoy Interrupts 1 | . . . . 1 . . . . Stealth | -11 -10 -9 -8 -7 -7 -7 -5 -4 --------- Run | Scr Mat Mat Mat Fac Sto Rec Fac Fac Distress Signals 9 | . 1 1 2 1 2 . . 2 Communications Jammed . | . . . . . . . . . Distress Signals . | . . . . . . . . . Times Spotted 225 | . 10 23 25 45 28 14 6 74 Peak Tracking Total 15 | . 3 6 6 13 6 4 2 15 Tactical Retreats 12 | . . . 2 1 3 . . 6 Traps | -11 -10 -9 -8 -7 -7 -7 -5 -4 ------- Run | Scr Mat Mat Mat Fac Sto Rec Fac Fac Traps Triggered 8 | . 3 1 3 . . . . 1 Indirectly . | . . . . . . . . . Trap Hack Attempts . | . . . . . . . . . Triggered . | . . . . . . . . . Disarmed . | . . . . . . . . . Reprogrammed . | . . . . . . . . . Reused . | . . . . . . . . . Traps Extracted . | . . . . . . . . . Installed . | . . . . . . . . . Triggered 2 | . . . . 2 . . . . Machines | -11 -10 -9 -8 -7 -7 -7 -5 -4 ---------- Run | Scr Mat Mat Mat Fac Sto Rec Fac Fac Machines Disabled 24 | . . 1 2 . 4 . . 17 Max in Single Turn 8 | . . 1 1 . 1 . . 8 Machines Sabotaged . | . . . . . . . . . Garrisons Compromised 1 | . . . . 1 . . . . Overloaded Fab Kills . | . . . . . . . . . Hacking | -11 -10 -9 -8 -7 -7 -7 -5 -4 --------- Run | Scr Mat Mat Mat Fac Sto Rec Fac Fac Machines Accessed 31 | . 3 4 2 2 5 10 1 4 Terminals 19 | . 3 3 2 . 5 3 . 3 Fabricators . | . . . . . . . . . Repair Stations . | . . . . . . . . . Recycling Units 9 | . . . . 1 . 7 . 1 Scanalyzers 3 | . . 1 . 1 . . 1 . Garrison Access . | . . . . . . . . . Total Hacks 69 | . 5 17 7 4 9 15 1 11 Successful 36 | . 2 10 2 3 5 10 . 4 Failed 33 | . 3 7 5 1 4 5 1 7 Catastrophic 8 | . 1 . . 1 1 2 . 3 Database Lockouts . | . . . . . . . . . Manual 23 | . 5 2 3 2 . 7 . 4 Terminals 50 | . 5 11 7 . 9 8 . 10 Fabricators . | . . . . . . . . . Repair Stations . | . . . . . . . . . Recycling Units 10 | . . . . 2 . 7 . 1 Scanalyzers 9 | . . 6 . 2 . . 1 . Garrison Access . | . . . . . . . . . Terminal Hacks 19 | . 2 4 2 . 5 3 . 3 Part Schematic 4 | . 2 . . . 1 . . 1 Robot Schematic 1 | . . . . . . 1 . . Open Door 2 | . . . . . 2 . . . Alert Level 6 | . . 3 1 . . 1 . 1 Unreport Threat 4 | . . 1 1 . 2 . . . Assault Status 1 | . . . . . . . . 1 Zone Layout 1 | . . . . . . 1 . . Fabricator Hacks . | . . . . . . . . . Repair Station Hacks . | . . . . . . . . . Recycling Unit Hacks . | . . . . . . . . . Scanalyzer 8 | . . 6 . 2 . . . . Insert Component 4 | . . 3 . 1 . . . . Analyze 4 | . . 3 . 1 . . . . Garrison Access Hacks . | . . . . . . . . . Unauthorized Hacks 9 | . . . . 1 . 7 . 1 Terminals . | . . . . . . . . . Fabricators . | . . . . . . . . . Repair Stations . | . . . . . . . . . Recycling Units 9 | . . . . 1 . 7 . 1 Mask 1 | . . . . 1 . . . . Tunnel 8 | . . . . . . 7 . 1 Scanalyzers . | . . . . . . . . . Garrison Access . | . . . . . . . . . Data Cores Recovered . | . . . . . . . . . Used . | . . . . . . . . . Hacking Detections 21 | . 3 3 2 2 4 3 1 3 Full Trace Events 5 | . . 1 . . . 2 . 2 Feedback Events 1 | . . . . . . 1 . . Corruption 1 | . . . . . . 1 . . Feedback Blocked . | . . . . . . . . . Robot Schematics Acquired 1 | . . . . . . 1 . . Robots Built . | . . . . . . . . . Authchips . | . . . . . . . . . Time . | . . . . . . . . . Total Robot Build Rating . | . . . . . . . . . Part Schematics Acquired 8 | . 2 3 . 1 1 . . 1 Parts Built . | . . . . . . . . . Authchips . | . . . . . . . . . Time . | . . . . . . . . . Total Part Build Rating . | . . . . . . . . . Parts Repaired . | . . . . . . . . . Time . | . . . . . . . . . Parts Recycled . | . . . . . . . . . Recycled Matter . | . . . . . . . . . Retrieved Matter . | . . . . . . . . . Retrieved Components . | . . . . . . . . . Parts Scanalyzed 4 | . . 3 . 1 . . . . Part Schematics Acquired 4 | . . 3 . 1 . . . . Parts Damaged . | . . . . . . . . . Bothacking | -11 -10 -9 -8 -7 -7 -7 -5 -4 ------------ Run | Scr Mat Mat Mat Fac Sto Rec Fac Fac Used RIF Installer . | . . . . . . . . . Robots Hacked . | . . . . . . . . . Non-combat . | . . . . . . . . . Combat . | . . . . . . . . . Robot Hacks Applied . | . . . . . . . . . Relay Couplers Released . | . . . . . . . . . Fabnet Peak Effective % . | . . . . . . . . . Robots Rewired 13 | . . . . . 1 11 . 1 Allies Hacked . | . . . . . . . . . Hacks Repelled . | . . . . . . . . . Allies | -11 -10 -9 -8 -7 -7 -7 -5 -4 -------- Run | Scr Mat Mat Mat Fac Sto Rec Fac Fac Total Allies 25 | . . . . . 13 11 . 1 Largest Group 17 | . . . . . 11 17 12 11 Highest-Rated Group 400 | . . . . . 273 400 316 314 Highest-Rated Ally 100 | . . . . . 100 40 40 40 Total Orders 23 | . . . . . 4 2 8 9 STAY 3 | . . . . . . . 3 . FOLLOW 5 | . . . . . . 1 3 1 TUNNEL 1 | . . . . . . 1 . . EXPLORE 14 | . . . . . 4 . 2 8 Ally Attacks 297 | . . . . . 65 151 30 51 Total Damage 4174 | . . . . . 1620 1178 475 901 Kills 59 | . . . . . 17 32 5 5 Allies Corrupted . | . . . . . . . . . Allies Melted . | . . . . . . . . . Intel | -11 -10 -9 -8 -7 -7 -7 -5 -4 ------- Run | Scr Mat Mat Mat Fac Sto Rec Fac Fac Robot Analysis Total . | . . . . . . . . . Derelict Logs Recovered . | . . . . . . . . . Drone Launches 14 | . . . . . 5 . 2 7 Drone Recoveries 6 | . . . . . 2 . 1 3 Exploration | -11 -10 -9 -8 -7 -7 -7 -5 -4 ------------- Run | Scr Mat Mat Mat Fac Sto Rec Fac Fac Turns Passed 5704 | 93 446 840 576 939 705 942 353 810 Spaces Moved 3377 | 52 236 416 215 505 449 529 266 709 Core 63 | 1 . . . . . . . 62 Treads 300 | 51 8 . 215 26 . . . . Legs . | . . . . . . . . . Wheels 2760 | . 228 416 . 479 449 529 266 393 Hover . | . . . . . . . . . Flight 254 | . . . . . . . . 254 Fastest Speed 32 | 50 100 145 160 115 108 130 105 32 Average Speed 117 | 157 118 145 161 124 115 130 106 76 Slowest Speed 320 | 160 240 145 240 320 130 130 123 130 Overloaded Moves . | . . . . . . . . . Propulsion Burnouts . | . . . . . . . . . Robots Hopped 10 | . . . . . . . . 10 Cave-ins Triggered . | . . . . . . . . . Exploration Rate (%) 39 | 4 48 43 22 12 88 96 11 30 Regions Visited 8 Branch Regions 2 Pre-discovered Areas 8 | . . . . . . 7 . 1 Known Exits Taken . | . . . . . . . . . Unknown Exits Taken 8 | 1 1 1 1 1 1 1 1 . Scrap Searched . | . . . . . . . . . Spaces Dug . | . . . . . . . . . Terrain Destroyed 313 | . 8 23 38 20 8 4 29 183 Melee . | . . . . . . . . . Projectile 24 | . . . . 2 8 4 1 9 AOE 289 | . 8 23 38 18 . . 28 174 Terrain Rammed . | . . . . . . . . . Walls Destroyed . | . . . . . . . . . Machines Disabled . | . . . . . . . . . Actions | -11 -10 -9 -8 -7 -7 -7 -5 -4 --------- Run | Scr Mat Mat Mat Fac Sto Rec Fac Fac Total 4538 | 60 329 580 359 676 577 771 315 871 Wait 471 | . 25 83 74 64 55 97 21 52 Move 3351 | 51 235 415 214 504 448 528 265 691 Hop 8 | . . . . . . . . 8 Pick Up 73 | 3 17 12 7 7 13 1 2 11 Fast Attach 50 | 6 4 6 3 7 9 . 3 12 Attach 48 | . 3 1 5 14 4 . 4 17 Detach 6 | . . 1 1 . 1 . . 3 Swap 40 | . 3 8 4 14 5 . 3 3 Drop 59 | . 2 16 6 5 14 . 8 8 Fire 266 | . 40 38 45 61 24 5 9 44 Melee . | . . . . . . . . . Ram . | . . . . . . . . . Kick . | . . . . . . . . . Crush . | . . . . . . . . . Escape Stasis 3 | . . . . . . . . 3 Rewire 163 | . . . . . 4 140 . 19 Trap . | . . . . . . . . . Miscellaneous . | . . . . . . . . . Route ------- -11/Scrapyard -10/Materials -9/Materials -8/Materials -7/Factory -7/Storage (discovered 2 exits: [*Fac] / *Rec) -7/Recycling -5/Factory -4/Factory (discovered 1 exit: [*Upp]) History --------- Turn | Location | Event 41 | -11/Scrapyard | Discovered new exit (range 16) 94 | -11/Scrapyard | Entered Materials 305 | -10/Materials | Build established: Mutant 489 | -10/Materials | Discovered new exit (range 15) 540 | -10/Materials | Entered another Materials area 540 | -9/Materials | Evolved 2 slots: Propulsion x1, Weapon x1 1076 | -9/Materials | Build established: Gunner 1357 | -9/Materials | Discovered new exit (range 11) 1380 | -9/Materials | Entered another Materials area 1380 | -8/Materials | Evolved 2 slots: Propulsion x1, Utility x1 1583 | -8/Materials | Destroyed 7 combat bots 1770 | -8/Materials | Discovered new exit (range 14) 1956 | -8/Materials | Entered Factory 1956 | -7/Factory | Evolved 2 slots: Power x1, Weapon x1 2193 | -7/Factory | Build established: Tank 2670 | -7/Factory | Discovered new exit (range 10) 2688 | -7/Factory | Cargo convoy interrupted 2732 | -7/Factory | Destroyed 7 combat bots 2745 | -7/Factory | Lost 10 parts (2p3n1u4w) 2895 | -7/Factory | Entered Storage 2997 | -7/Storage | Met 01-MTF 3026 | -7/Storage | Garrison activated, responded to threat 3092 | -7/Storage | Found Prototype Launcher 3301 | -7/Storage | Discovered new exit (range 15) 3322 | -7/Storage | Assisted by bots powering up and referring to "LRC-V3" 3587 | -7/Storage | Discovered new exit (range 5) 3600 | -7/Storage | Entered Recycling 3600 | -7/Recycling | Accompanied by 8 allies (01-MTF) 3602 | -7/Recycling | Spotter reported a threat 3605 | -7/Recycling | 01-MTF left 3624 | -7/Recycling | Build established: Commander-Gunner 3637 | -7/Recycling | Spotter reported a threat 3662 | -7/Recycling | Spotter reported a threat 3676 | -7/Recycling | Spotter reported a threat 3685 | -7/Recycling | Spotter reported a threat 3689 | -7/Recycling | Spotter reported a threat 3703 | -7/Recycling | Spotter reported a threat 3703 | -7/Recycling | Spotter reported a threat 3708 | -7/Recycling | Spotter reported a threat 3712 | -7/Recycling | Spotter reported a threat 3726 | -7/Recycling | Spotter reported a threat 3751 | -7/Recycling | Spotter reported a threat 3756 | -7/Recycling | Spotter reported a threat 3761 | -7/Recycling | Spotter reported a threat 3779 | -7/Recycling | Spotter reported a threat 3795 | -7/Recycling | Spotter reported a threat 3796 | -7/Recycling | Spotter reported a threat 3935 | -7/Recycling | Spotter reported a threat 3952 | -7/Recycling | Spotter reported a threat 3955 | -7/Recycling | Spotter reported a threat 3999 | -7/Recycling | Spotter reported a threat 4000 | -7/Recycling | Spotter reported a threat 4008 | -7/Recycling | Spotter reported a threat 4053 | -7/Recycling | Spotter reported a threat 4056 | -7/Recycling | Spotter reported a threat 4057 | -7/Recycling | Spotter reported a threat 4082 | -7/Recycling | Spotter reported a threat 4142 | -7/Recycling | Spotter reported a threat 4165 | -7/Recycling | Spotter reported a threat 4195 | -7/Recycling | Spotter reported a threat 4275 | -7/Recycling | Spotter reported a threat 4288 | -7/Recycling | Spotter reported a threat 4300 | -7/Recycling | Spotter reported a threat 4328 | -7/Recycling | Spotter reported a threat 4347 | -7/Recycling | Spotter reported a threat 4358 | -7/Recycling | Spotter reported a threat 4400 | -7/Recycling | Spotter reported a threat 4400 | -7/Recycling | Spotter reported a threat 4400 | -7/Recycling | Spotter reported a threat 4401 | -7/Recycling | Spotter reported a threat 4418 | -7/Recycling | Discovered new exit (range 16) 4438 | -7/Recycling | Spotter reported a threat 4438 | -7/Recycling | Spotter reported a threat 4438 | -7/Recycling | Spotter reported a threat 4453 | -7/Recycling | Spotter reported a threat 4542 | -7/Recycling | Entered Factory 4542 | -5/Factory | Accompanied by 13 allies 4542 | -5/Factory | Evolved 4 slots: Power x1, Propulsion x1, Utility x1, Weapon x1 4606 | -5/Factory | Discovered new exit (range 35) 4695 | -5/Factory | Identified Rocket Array 4842 | -5/Factory | Search patrols dispatched 4849 | -5/Factory | Build established: Commander-Tank 4895 | -5/Factory | Entered another Factory area 4895 | -4/Factory | Accompanied by 12 allies 4895 | -4/Factory | Evolved 2 slots: Propulsion x1, Weapon x1 5176 | -4/Factory | First assault squad dispatched 5271 | -4/Factory | Destroyed 12 combat bots 5527 | -4/Factory | Released all parts (3) 5561 | -4/Factory | Lost 23 parts (3p7n5u8w) 5576 | -4/Factory | Core integrity fell below 50% 5582 | -4/Factory | Core integrity fell below 20% 5686 | -4/Factory | Spotted B-86 Titan 5700 | -4/Factory | Discovered new exit (range 14) 5705 | -4/Factory | Destroyed by Y-64 Sentinel with Wave Gun Last Messages --------------- 05679_ Slug penetrates Wall. 05681_ K-01 Serf cleans the Pressure Siphon. 05684_ K-01 Serf cleans the Terminal. 05684_ Slug penetrates Wall. 05687_ Penetrated by Slug. 05687_ Subcomponent Replicator disabled. 05687_ Drone destroyed. 05688_ K-01 Serf collects debris. 05688_ Acquired Field Propulsion Drive. 05693_ Neutrino Reactor explodes. 05695_ Repair Station disabled. 05696_ Slug penetrates Wall. 05696_ Lgt. Ion Engine destroyed. 05698_ Penetrated by Slug. 05698_ Slug penetrates Wall. 05698_ Penetrated by Slug. 05698_ Slug penetrates Wall. 05700_ EXIT=FOUND 05700_ Penetrated by Slug. 05702_ Slug penetrates Wall. Map ----- +----------------------------------------------------+ | ?????????????????????????????????????????????????? | | ?????????????????????????????????????????????????? | | ?????????????????????????????????????????????????? | | ?????????????????????????????????????????????????? | | ?????????????????????????????????????????????????? | | ?????????????????????????????????????????????????? | | ?????????????????????????????????????????????????? | | ?????????????????????????????????????????????????? | | ?????????????????????????????????????????????????? | | ?????????????????????????????????????????????????? | | ?????????????????????????????????????????????????? | | ?????????????????????????????????????????????????? | | ?????????????????????????????????????????????????? | | ?????????????????????????????????????????????????? | | ?????????????????????????????????????????????????? | | ?????????????????????????????????????????????????? | | ?????????????????????????????????????????????????? | | ?????????????????????????????????????????????????? | | ?????????????????????????????????????????????????? | | ?????????????????????????????????????????????????? | | ????????????????????????#+#??????????##??????????? | | ????????????????######### #??????? #?????????? | | ????????????????# ###### u ?????????? | | ???????+######### ????????? | | ??? Y< ????????? | | ?? g @ ????????? | | ?? !! h##+####### ????????? | | ?? !! """ """ # ??????????????????????? | | ??? !! """ """ #"" ????????????????????? | | ??? """ """ #"" !!! #??????????????????? | | " " "" "" #G !!! #??????????????????? | | "Y" "" " ! #"" !!! #??????????????????? | | ?# """ ! #"" #??????????????????? | | ?# # #??????????????????? | | ?# #?? #??????????????????? | | ??+##### #+#############?????????????????? | | ???????# # #?????????????????? | | ???????# # #?????????????????? | | ???????# #""" ]|| #?????????????????? | | ???????# #"R ]|| #????????????????? | | ???????# #"" ]| ##????????????????? | | ???????# # #?????????????????? | | ???????####### #################?????????????????? | | ?????????????# #?????????????????????????????????? | | ???????????### ###???????????????????????????????? | | ???????????# #???????????????????????????????? | | ???????????# #???????????????????????????????? | | ???????????+ + """"??????????????????????????? | | ???????????# # """"??????????????????????????? | | ???????????# # """"??????????????????????????? | +----------------------------------------------------+ Best States ------------- Heat Dissipation 89 Energy Generation 45 Energy Capacity 715 Matter Stores 300 Matter Capacity 300 Sight Range 16 Robot Scan Range 18 Terrain Scan Density 10 Armor Coverage 225 Evasion (%) 63 Recoil Reduction 4 Item Schematics ----------------- Lrg. Storage Unit | -10/Materials | Hacked Hcp. Storage Unit | -10/Materials | Hacked Hacking Suite | -9/Materials | Scanalyzed Com. Wheel | -9/Materials | Scanalyzed Datajack | -9/Materials | Scanalyzed System Shield | -7/Factory | Scanalyzed Imp. Deuterium Engine | -7/Storage | Hacked Lgt. Quantum Reactor | -4/Factory | Hacked Robot Schematics ------------------ K-01 Serf | -7/Recycling | Hacked Fabricated ------------ Nothing Alien Tech Used ----------------- None Achievements -------------- None Challenges ------------ None Game ------ Seed DisruptorPoweredTearclaws Manual? 0 Play Time 01:12:56 Cumulative 187.8 hours Start 2022.09.30 @ 22:06:51 End 2022.09.30 @ 23:20:04 Sessions 1 Manual Loads 0 Difficulty Rogue Special Mode None Game No. 145 Rogue 142 Adventurer 3 Explorer 0 Win Type - Total 1 Types 1/0/0/0/0/0/0/0/0 Lore% 58 Gallery% 62 Achievement% 51 Wizard Run 0 Options --------- ASCII 0 Keyboard 0 Movement Numpad Keybinds 0 Fullscreen 1 Font 18/SmallcapsGlow Map View 76x50 Tactical HUD 1 Map Filters NONE Filters NONE Steam 1 RUN: 0a8202be-58e8-4ae8-9361-065b4e309357